bitfinex/quotes_ETHUSD_20240817
["timestamp","ask_amount","ask_price","bid_price","bid_amount"]
[1723901225984,19.77,2615.6,2615.5,5.73504]
[1723901226189,19.77,2615.6,2615.5,9.28504]
[1723901226383,2.459,2616.0,2615.7,2.86723]
[1723901226581,2.459,2616.0,2615.7,5.73447]
[1723901227083,2.459,2616.0,2615.7,5.73446]
[1723901227277,2.459,2616.0,2615.7,2.86723]
[1723901227679,2.459,2616.0,2615.8,2.86717]
[1723901227914,2.459,2616.0,2615.7,2.86723]
[1723901228115,2.459,2616.0,2615.8,2.86716]
[1723901229587,2.459,2616.3,2615.9,2.867]
[1723901230478,2.459,2616.3,2615.9,5.73401]
[1723901230713,2.459,2616.3,2615.9,2.867]
[1723901231609,2.459,2616.2,2615.7,2.86723]
[1723901231810,2.459,2616.1,2615.7,2.86723]
[1723901235493,2.459,2616.1,2615.7,5.73446]
[1723901235724,2.459,2616.1,2615.8,2.86718]
[1723901240853,2.459,2616.1,2615.7,2.86723]
[1723901240999,2.991565,2616.1,2615.7,5.73446]
[1723901241196,2.991565,2616.1,2615.8,2.86718]
[1723901241400,2.991565,2616.1,2615.7,5.73446]
[1723901241600,2.991565,2616.1,2615.7,5.73445]
[1723901241820,2.991565,2616.1,2615.7,5.73444]
[1723901242215,2.459,2616.1,2615.8,2.86718]
[1723901242632,2.459,2616.1,2615.9,2.86708]
[1723901245437,2.3111,2616.5,2616.0,2.86697]
[1723901245734,2.3111,2616.5,2615.7,2.3249]
[1723901245908,2.3111,2616.5,2616.2,2.86664]
[1723901246111,2.54221,2616.5,2616.2,2.86664]
[1723901249346,2.3111,2616.5,2616.2,2.86664]
[1723901249674,2.86653,2616.5,2615.0,2.83482716]
[1723901249951,3.156,2616.6,2615.2,2.86783]
[1723901249952,2.3111,2615.6,2615.2,2.86783]
[1723901250767,2.3111,2615.6,2615.1,2.86789]
[1723901251038,2.3111,2615.6,2614.2,3.32523768]
[1723901251039,2.86818,2614.9,2614.2,6.19410768]
[1723901251242,2.3111,2614.9,2614.2,6.19410768]
[1723901251416,2.8684,2614.7,2614.2,3.32523768]
[1723901252147,5.17966,2614.6,2614.2,3.32523768]
[1723901252720,2.86863,2614.5,2614.2,3.32523768]
[1723901253451,2.86867,2614.5,2614.2,3.32523768]
[1723901254351,2.86867,2614.5,2613.9,2.86927]
[1723901254526,2.86867,2614.5,2614.0,3.0]
[1723901255035,2.86867,2614.5,2613.9,3.0]
[1723901256125,2.86867,2614.5,2613.9,5.86927]
[1723901259410,8.853026,2614.6,2613.9,5.86927]
[1723901259844,5.984436,2614.6,2614.0,2.86916]
[1723901260045,5.17963,2614.6,2614.0,2.86916]
[1723901260252,8.04822,2614.6,2614.0,2.86916]
[1723901260547,5.17963,2614.6,2614.0,2.86916]
[1723901261539,2.3111,2614.6,2614.0,2.86916]
[1723901261940,2.3111,2614.6,2614.0,2.86909]
[1723901262142,2.3111,2614.6,2614.1,2.86904]
[1723901266261,5.1796,2614.6,2614.1,2.86904]
[1723901266427,7.044992,2614.6,2614.1,2.86904]
[1723901267447,2.3111,2614.6,2614.1,2.86898]
[1723901269026,2.3111,2614.6,2614.3,2.86882]
[1723901269458,7.45,2614.8,2614.1,2.86897]
[1723901269656,7.45,2614.8,2614.4,2.86867]
[1723901269960,7.45,2614.8,2614.5,3.41855]
[1723901270752,8.44078,2614.8,2614.2,3.0]
[1723901271057,2.86851,2614.6,2614.1,3.0]
[1723901271259,3.155501,2614.5,2614.1,3.0]
[1723901273266,0.286851,2614.5,2614.1,3.0]
[1723901273437,8.19477,2614.7,2614.1,5.86904]
[1723901273636,8.19474,2614.7,2614.1,5.86904]
[1723901274168,5.32626,2614.7,2614.2,5.7378]
[1723901274330,5.32626,2614.7,2614.2,2.86888]
[1723901274531,2.4578,2614.7,2614.3,2.86876]
[1723901275169,2.4578,2614.7,2614.2,2.86888]
[1723901275332,6.890628,2614.7,2614.2,2.86888]
[1723901275535,4.022228,2614.7,2614.2,5.73776]
[1723901275871,4.022228,2614.7,2614.2,2.86888]
[1723901276043,2.4578,2614.7,2614.4,2.86872]
[1723901276650,2.4578,2614.7,2614.2,2.86888]
[1723901277044,2.4578,2614.7,2614.2,5.73776]
[1723901277358,2.4578,2614.7,2614.2,2.86888]
[1723901277560,2.4578,2614.7,2614.2,5.73776]
[1723901278474,2.4578,2614.7,2614.2,2.86888]
[1723901278644,6.890656,2614.7,2614.1,3.0]
[1723901278846,5.12601,2614.6,2614.1,3.0]
[1723901279051,2.86862,2614.5,2614.1,3.0]
[1723901279255,2.2574,2614.6,2614.1,3.0]
[1723901279441,5.12591,2614.6,2614.1,3.0]
[1723901280644,3.8245566,2614.5,2614.1,3.0]
[1723901280856,5.12591,2614.6,2614.1,3.0]
[1723901281672,5.12591,2614.6,2614.1,5.86905]
[1723901281878,2.2574,2614.6,2614.1,5.86905]
[1723901283683,2.2574,2614.6,2614.2,2.86888]
[1723901283875,5.12591,2614.6,2614.1,5.86905]
[1723901284055,9.854492,2614.6,2614.1,5.86905]
[1723901284256,6.985932,2614.6,2614.1,5.86905]
[1723901284662,6.985932,2614.6,2614.1,3.0]
[1723901284972,2.86861,2614.5,2614.0,5.86914]
[1723901285284,4.117422,2614.6,2614.0,5.86914]
[1723901285459,5.12591,2614.6,2614.1,2.86903]
[1723901286172,7.99447,2614.6,2614.1,2.86903]
[1723901286353,9.854497,2614.6,2614.0,3.0]
[1723901286558,9.854517,2614.6,2614.0,5.86915]
[1723901286866,6.985937,2614.6,2614.0,5.86915]
[1723901287073,9.854547,2614.6,2614.0,5.86915]
[1723901287943,5.16602,2614.5,2614.0,5.86915]
[1723901288342,2.2974,2614.5,2614.0,5.86915]
[1723901288551,2.2974,2614.5,2614.1,2.86904]
[1723901289551,2.2974,2614.5,2614.1,2.86899]
[1723901291560,2.86878,2614.4,2614.0,3.0]
[1723901292768,2.2974,2614.5,2614.0,5.86915]
[1723901293486,2.2974,2614.7,2614.3,2.86882]
[1723901293893,2.2974,2614.7,2614.4,2.8687]
[1723901298093,1.317,2614.6,2614.4,2.8687]
[1723901298264,2.2974,2614.7,2614.4,2.86866]
[1723901298472,2.2787,2614.9,2614.4,5.7373]
[1723901299195,2.2787,2614.9,2614.4,2.86865]
[1723901299371,1.317,2614.7,2614.4,2.86865]
[1723901300171,1.317,2614.7,2614.2,6.53389167]
[1723901300401,1.317,2614.7,2614.3,6.74522963]
[1723901300600,1.317,2614.7,2614.3,3.41877]
[1723901301673,1.317,2614.7,2614.4,2.86872]
[1723901307070,2.86862,2614.5,2614.2,0.79618167]
[1723901307270,2.86862,2614.5,2614.0,6.66533167]
[1723901307491,2.86862,2614.5,2614.1,1.33073347]
[1723901307677,2.86862,2614.5,2614.0,5.86915]
[1723901307876,2.86862,2614.5,2614.1,1.33075152]
[1723901308179,1.317,2614.3,2614.0,5.86915]
[1723901308529,1.317,2614.3,2614.1,1.33074736]
[1723901308676,1.317,2614.3,2614.0,5.8691]
[1723901308875,1.317,2614.3,2614.1,1.33075756]
[1723901309078,1.317,2614.3,2614.0,5.8691]
[1723901309332,1.317,2614.3,2614.1,1.33076174]
[1723901309668,1.317,2614.3,2614.0,5.8691]
[1723901309827,1.317,2614.3,2614.1,3.32682538]
[1723901310123,1.317,2614.3,2614.0,5.8691]
[1723901310349,1.317,2614.3,2614.1,1.33076316]
[1723901310481,1.317,2614.3,2614.0,5.8691]
[1723901310482,1.317,2614.3,2614.0,6.66528167]
[1723901310835,1.317,2614.3,2614.1,1.33076152]
[1723901311135,1.317,2614.3,2614.0,8.7382]
[1723901311136,1.317,2614.3,2614.2,1.33072715]
[1723901311420,1.317,2614.3,2614.0,6.66528167]
[1723901311628,1.317,2614.3,2614.1,3.32677487]
[1723901311834,1.317,2614.3,2614.1,2.86905]
[1723901312127,1.317,2614.5,2614.2,3.32670046]
[1723901312285,1.317,2614.5,2614.1,3.66523167]
[1723901312487,1.317,2614.5,2614.2,1.33066433]
[1723901312721,3.5957,2614.6,2614.1,3.66523167]
[1723901312923,3.5957,2614.6,2614.2,3.3266204]
[1723901313121,3.5957,2614.6,2614.1,2.86905]
[1723901313333,3.5957,2614.6,2614.2,3.32668281]
[1723901313613,3.5957,2614.6,2614.2,2.86888]
[1723901313813,2.86825,2614.9,2614.2,2.86888]
[1723901313814,2.2787,2614.9,2614.3,3.32653823]
[1723901314014,1.317,2614.8,2614.5,2.86851]
[1723901315482,2.2787,2614.9,2614.5,2.86851]
[1723901315715,1.317,2614.7,2614.5,2.86851]
[1723901316877,1.317,2614.7,2614.4,2.86866]
[1723901317082,1.317,2614.7,2614.5,0.55]
[1723901317309,1.317,2614.7,2614.5,3.4186]
[1723901318915,5.31687,2614.6,2614.2,0.79618167]
[1723901319117,1.317,2614.3,2614.1,2.86903]
[1723901319514,1.317,2614.3,2614.2,1.330712]
[1723901319951,1.317,2614.3,2614.0,6.66532167]
[1723901320131,1.317,2614.3,2614.1,6.19587713]
[1723901320452,1.317,2614.3,2614.2,1.33073085]
[1723901320820,1.317,2614.3,2614.1,2.86905]
[1723901321022,1.317,2614.5,2614.2,1.3307166]
[1723901321316,1.317,2614.5,2614.1,2.86899]
[1723901321513,1.317,2614.5,2614.2,6.19555664]
[1723901321718,1.317,2614.5,2614.2,2.86885]
[1723901322621,1.317,2614.5,2614.3,1.33063551]
[1723901322851,1.317,2614.5,2614.2,2.86885]
[1723901330347,2.4483,2614.6,2614.4,2.86872]
[1723901332591,1.317,2614.5,2614.4,2.86872]
[1723901333274,1.317,2614.5,2614.2,2.86885]
[1723901334261,1.317,2614.5,2614.3,1.33064746]
[1723901334461,1.317,2614.5,2614.2,2.86885]
[1723901334781,1.317,2614.5,2614.3,1.33064808]
[1723901334986,1.317,2614.5,2614.2,2.86885]
[1723901335169,1.317,2614.5,2614.3,1.33066436]
[1723901335385,1.317,2614.5,2614.0,6.66529167]
[1723901335563,5.31687,2614.6,2614.0,6.66529167]
[1723901335564,2.3171,2614.2,2614.1,4.12290142]
[1723901335919,2.3171,2614.2,2614.1,6.32671975]
[1723901336501,2.3171,2614.2,2614.1,9.19576975]
[1723901337214,2.3171,2614.2,2614.1,9.99195142]
[1723901337700,2.3171,2614.2,2614.1,9.19576975]
[1723901338000,2.3171,2614.2,2614.1,6.32671975]
[1723901338312,2.3171,2614.2,2614.1,9.19576975]
[1723901338508,1.317,2614.3,2614.2,2.86894]
[1723901338809,2.3171,2614.4,2614.2,6.19565975]
[1723901339006,2.3171,2614.4,2614.2,2.86894]
[1723901339300,1.317,2614.5,2614.2,2.86894]
[1723901340307,1.317,2614.5,2614.3,1.33064596]
[1723901340501,1.317,2614.5,2614.2,2.86894]
[1723901340695,1.317,2614.5,2614.2,5.73783]
[1723901340908,1.317,2614.5,2614.2,2.86889]
[1723901341119,2.3171,2614.4,2614.1,6.66522167]
[1723901341419,2.3171,2614.4,2614.2,3.3267373]
[1723901341596,2.3171,2614.4,2614.1,5.86904]
[1723901341918,2.3171,2614.4,2614.2,1.33069197]
[1723901342079,2.3171,2614.4,2614.1,5.86904]
[1723901342276,1.317,2614.3,2614.2,1.33070287]
[1723901343108,1.317,2614.3,2614.1,5.86904]
[1723901344675,1.317,2614.3,2614.1,3.0]
[1723901347603,2.3171,2614.2,2614.1,3.0]
[1723901347814,2.3171,2614.2,2614.1,4.33075673]
[1723901348184,2.3171,2614.2,2614.1,4.33075856]
[1723901348584,2.3171,2614.2,2614.1,4.33077259]
[1723901349495,2.3171,2614.2,2614.1,6.32687984]
[1723901349808,2.3171,2614.2,2614.1,4.33077259]
[1723901350379,2.3171,2614.2,2614.1,9.19595791]
[1723901350810,2.3171,2614.2,2614.1,7.19982259]
[1723901351013,2.3171,2614.2,2614.1,9.19595627]
[1723901351231,2.3171,2614.2,2614.1,7.19982259]
[1723901353427,2.3171,2614.2,2614.1,7.19981878]
[1723901354804,2.3171,2614.2,2614.1,3.0]
[1723901355128,2.3171,2614.2,2614.1,1.33078687]
[1723901355332,2.3171,2614.2,2614.0,3.0]
[1723901355333,2.967383,2614.2,2614.0,3.0]
[1723901355628,1.317,2614.1,2614.0,3.0]
[1723901356010,1.317,2614.1,2614.0,4.33087178]
[1723901356195,1.317,2614.1,2614.0,4.33084306]
[1723901356937,1.317,2614.1,2614.0,3.0]
[1723901357104,1.317,2614.1,2614.0,4.33081218]
[1723901358105,1.317,2614.1,2614.0,4.33079563]
[1723901358835,2.3171,2614.2,2614.0,4.33079563]
[1723901359025,2.3171,2614.2,2614.0,3.0]
[1723901361199,1.317,2614.1,2614.0,3.0]
[1723901361424,1.317,2614.1,2614.0,4.33079167]
[1723901361938,1.317,2614.1,2614.0,6.32700114]
[1723901362132,1.317,2614.1,2614.0,9.19616114]
[1723901362386,1.317,2614.1,2614.0,7.19995167]
[1723901362515,2.3171,2614.2,2614.0,9.19614432]
[1723901362720,2.3171,2614.2,2614.0,5.86916]
[1723901363722,1.317,2614.1,2614.0,5.86916]
[1723901364052,1.317,2614.1,2614.0,9.19614471]
[1723901364227,2.3171,2614.2,2614.0,9.19614471]
[1723901364425,2.3171,2614.2,2614.1,1.33077246]
[1723901365318,2.3171,2614.2,2614.1,4.19982246]
[1723901365521,2.3592,2614.5,2614.2,2.86894]
[1723901365721,2.3592,2614.5,2614.0,5.86906]
[1723901365722,3.6762,2614.5,2614.0,5.86906]
[1723901365943,3.6762,2614.5,2614.1,6.19584659]
[1723901366112,4.4338536,2614.5,2614.1,2.86898]
[1723901368655,4.4338536,2614.5,2614.1,5.73797]
[1723901368853,4.4338536,2614.5,2614.1,2.86898]
[1723901369055,3.6762,2614.5,2614.3,2.8688]
[1723901376469,3.6762,2614.5,2614.2,2.86894]
[1723901376629,1.317,2614.3,2614.2,2.86894]
[1723901379328,1.317,2614.3,2614.1,2.86898]
[1723901380828,2.2981,2614.2,2614.0,3.0]
[1723901384003,1.317,2614.1,2614.0,3.0]
[1723901384160,1.317,2614.1,2614.0,6.32705838]
[1723901385558,1.317,2614.1,2614.0,1.33082335]
[1723901386751,1.317,2614.1,2613.9,2.86921]
[1723901386952,1.317,2614.1,2614.0,1.33085805]
[1723901387681,1.317,2614.1,2614.0,3.32709568]
[1723901388789,1.317,2614.1,2614.0,1.33085805]
[1723901389006,1.317,2614.1,2614.0,3.32710837]
[1723901389296,1.317,2614.1,2614.0,1.33085805]
[1723901390166,1.317,2614.1,2614.0,3.32711001]
[1723901391657,1.317,2614.1,2613.9,3.66539167]
[1723901391857,1.317,2614.1,2614.0,3.32703903]
[1723901392095,1.317,2614.1,2614.0,3.32703812]
[1723901396472,1.317,2614.1,2614.0,3.32705892]
[1723901401105,1.317,2614.1,2614.0,3.32704413]
[1723901402672,2.478,2614.5,2614.0,3.32704413]
[1723901402870,3.795,2614.5,2614.1,6.19604413]
[1723901403069,3.795,2614.5,2614.2,3.32704413]
[1723901403269,7.45,2614.6,2614.5,2.86861]
[1723901403575,1.317,2615.1,2615.0,2.86806]
[1723901404273,1.317,2615.1,2614.9,2.86817]
[1723901404586,1.317,2615.1,2614.9,2.86811]
[1723901404786,1.317,2615.1,2614.9,5.73622]
[1723901405107,1.317,2615.1,2614.9,2.86811]
[1723901405603,1.317,2615.0,2614.9,2.86811]
[1723901406905,2.4751297,2615.2,2614.9,2.86811]
[1723901407105,1.317,2615.3,2615.1,2.86793]
[1723901407486,2.19493543,2616.4,2615.3,2.86766]
[1723901407487,1.317,2615.6,2615.3,2.86766]
[1723901407825,1.317,2615.4,2615.3,2.86766]
[1723901408997,1.317,2615.6,2615.5,2.86752]
[1723901409316,1.317,2615.6,2615.4,2.8676]
[1723901409317,1.317,2615.9,2615.7,2.86721]
[1723901409741,1.317,2615.9,2615.8,2.86719]
[1723901409885,3.795,2616.1,2615.8,2.86719]
[1723901410593,3.795,2616.1,2615.6,2.86733]
[1723901410594,1.317,2615.9,2615.6,2.86733]
[1723901412212,2.478,2615.8,2615.6,2.86733]
[1723901412420,1.317,2615.7,2615.3,3.0]
[1723901412618,2.478,2615.4,2615.1,2.86789]
[1723901412825,2.478,2615.4,2615.0,2.86803]
[1723901412826,1.317,2615.3,2615.0,2.86803]
[1723901413021,1.317,2615.3,2615.0,5.73603]
[1723901413224,1.317,2615.3,2615.0,2.868]
[1723901413894,1.317,2615.3,2614.8,2.86822]
[1723901414095,2.478,2615.0,2614.6,2.8684]
[1723901414332,1.317,2615.1,2614.8,2.86828]
[1723901414628,2.2501,2615.2,2614.9,2.86811]
[1723901414830,2.2501,2615.2,2614.8,2.86828]
[1723901414831,2.2501,2615.2,2615.0,2.86799]
[1723901416136,2.2501,2615.2,2614.8,5.73643]
[1723901416441,2.2501,2615.2,2614.8,2.86821]
[1723901416645,2.2501,2615.2,2614.4,1.317]
[1723901416646,2.2501,2614.8,2614.4,2.86866]
[1723901416810,2.2501,2614.8,2614.5,2.86859]
[1723901417313,2.2501,2614.6,2614.2,2.86884]
[1723901417634,1.317,2614.3,2614.0,2.8691]
[1723901417832,1.317,2614.3,2614.0,2.86909]
[1723901418037,1.317,2614.5,2614.0,2.86909]
[1723901418708,1.317,2614.5,2614.0,5.73819]
[1723901419121,1.317,2614.5,2614.0,2.86909]
[1723901419523,2.2501,2614.4,2614.0,2.86909]
[1723901419732,1.317,2614.3,2614.0,2.86909]
[1723901419939,2.2501,2614.4,2614.0,2.86909]
[1723901420714,2.2501,2614.4,2614.0,5.73819]
[1723901420912,2.2501,2614.4,2614.0,2.86909]
[1723901421109,2.2501,2614.4,2614.0,5.73819]
[1723901422019,2.2501,2614.4,2614.1,2.86903]
[1723901422459,2.2501,2614.6,2614.2,2.86893]
[1723901422657,2.2501,2614.6,2614.3,2.86877]
[1723901422821,0.22501,2614.5,2614.2,2.86893]
[1723901423461,2.2501,2614.6,2614.2,2.86888]
[1723901423614,2.2501,2614.6,2614.3,2.86882]
[1723901423820,2.2501,2614.6,2614.2,2.86888]
[1723901424350,2.2501,2614.6,2614.2,5.73774]
[1723901424718,2.2501,2614.6,2614.2,2.86886]
[1723901424927,2.761942,2614.6,2614.2,2.86886]
[1723901425322,2.2501,2614.6,2614.2,2.86886]
[1723901426025,2.2501,2614.6,2614.3,2.8688]
[1723901426333,2.2501,2614.9,2614.5,2.86852]
[1723901426957,2.2501,2614.9,2614.4,2.86871]
[1723901427124,0.97001,2614.8,2614.4,2.86866]
[1723901427455,0.97001,2614.8,2614.2,2.86888]
[1723901427456,2.2501,2614.7,2614.2,2.86888]
[1723901427659,5.11859,2614.7,2614.3,3.0]
[1723901427859,5.11859,2614.7,2614.1,5.86897]
[1723901428153,5.11859,2614.7,2614.3,2.86876]
[1723901428154,2.2501,2614.7,2614.3,2.86876]
[1723901430543,2.2501,2614.7,2614.2,2.86885]
[1723901430874,2.2501,2614.7,2614.3,3.0]
[1723901431777,2.2501,2614.7,2614.3,5.86877]
[1723901433004,2.2501,2614.7,2614.3,3.0]
[1723901433302,2.47511,2614.7,2614.3,3.0]
[1723901433699,2.47511,2614.7,2614.0,2.86911]
[1723901433700,2.2501,2614.5,2614.0,2.86911]
[1723901434004,2.2501,2614.5,2614.1,3.0]
[1723901434799,2.2501,2614.5,2614.1,5.86903]
[1723901435005,2.2501,2614.5,2614.1,3.0]
[1723901435390,2.784467,2614.5,2613.6,2.8695]
[1723901435590,2.3626,2614.4,2613.7,5.86943]
[1723901435983,2.3626,2614.4,2613.8,2.86932]
[1723901435984,5.23139,2614.4,2613.8,2.86932]
[1723901436275,5.754506,2614.4,2613.8,2.86932]
[1723901436704,8.623286,2614.4,2613.8,2.86932]
[1723901438210,5.754496,2614.4,2613.8,2.86932]
[1723901438369,5.754496,2614.4,2613.8,2.81932]
[1723901438569,0.5754496,2614.3,2613.8,2.81932]
[1723901441072,0.5754496,2614.3,2613.9,2.86926]
[1723901441875,1.8924496,2614.3,2613.9,2.86926]
[1723901448629,1.8924496,2614.3,2614.0,2.86914]
[1723901448842,1.317,2614.3,2614.0,2.86914]
[1723901450556,1.317,2614.3,2613.7,3.0]
[1723901450557,2.3626,2614.2,2613.7,5.86944]
[1723901450707,0.36796,2614.1,2613.7,5.86943]
[1723901450907,2.3626,2614.2,2613.7,8.73886]
[1723901451347,2.3626,2614.2,2613.8,2.86936]
[1723901451652,1.317,2614.1,2613.7,5.86943]
[1723901451879,2.8696,2613.6,2612.8,4.73651783]
[1723901452147,2.3626,2613.3,2612.7,2.8705]
[1723901452311,2.3626,2613.3,2612.8,2.87047]
[1723901452312,5.23254,2613.3,2612.8,2.87047]
[1723901452509,5.23254,2613.3,2612.5,5.21544]
[1723901452510,2.87007,2613.2,2612.6,2.87061]
[1723901452731,1.317,2612.7,2612.3,2.87097]
[1723901452931,2.3626,2612.9,2612.2,0.79945449]
[1723901452932,1.317,2612.5,2612.2,2.87114]
[1723901453169,1.317,2612.5,2612.0,2.87127]
[1723901453743,1.317,2612.5,2612.1,2.87124]
[1723901454066,2.87049,2612.8,2612.1,2.87117]
[1723901454291,2.3626,2612.5,2611.5,0.79945449]
[1723901454452,2.3626,2612.5,2612.0,2.87129]
[1723901454833,2.3626,2612.5,2612.1,2.87118]
[1723901455137,2.3626,2612.5,2612.2,2.87114]
[1723901455938,5.46969,2612.5,2611.9,2.87141]
[1723901456195,2.87097,2612.4,2611.7,5.74322]
[1723901456491,2.3626,2612.3,2611.7,2.8716]
[1723901457039,2.3626,2612.3,2611.8,2.8715]
[1723901457383,2.3626,2612.3,2611.9,2.87142]
[1723901457666,2.9929892,2612.3,2611.9,2.87142]
[1723901457874,2.9929892,2612.3,2612.0,2.87129]
[1723901458166,2.3626,2612.3,2612.0,2.87129]
[1723901458368,2.3626,2612.3,2612.1,2.87118]
[1723901458539,2.3626,2612.3,2611.9,5.74281]
[1723901458939,2.3626,2612.3,2611.9,2.87139]
[1723901460585,2.622486,2612.3,2611.9,2.87139]
[1723901460787,2.622486,2612.3,2611.7,5.8716]
[1723901460987,2.622486,2612.3,2611.8,3.0]
[1723901461379,5.493536,2612.3,2611.8,3.0]
[1723901461579,5.493536,2612.3,2611.5,2.87185]
[1723901461580,5.34076,2612.1,2611.5,3.0]
[1723901461778,5.34076,2612.1,2611.4,2.87195]
[1723901461779,2.4695,2612.0,2611.4,2.87195]
[1723901462011,2.4695,2612.0,2611.4,2.87201]
[1723901462012,3.652506,2611.9,2611.4,2.87201]
[1723901462655,3.652506,2611.9,2609.7,2.87381]
[1723901462656,5.34158,2611.4,2609.7,2.87381]
[1723901462858,5.34158,2611.4,2609.5,2.3469]
[1723901462859,2.4695,2611.1,2610.5,2.87298]
[1723901463118,2.4695,2611.1,2610.6,2.87287]
[1723901463257,2.4695,2611.1,2610.5,2.87293]
[1723901463691,5.34192,2611.1,2610.5,2.87293]
[1723901463989,0.534192,2611.0,2610.5,2.87293]
[1723901464798,0.534192,2611.0,2610.3,5.74633]
[1723901465004,0.534192,2611.0,2610.4,3.0]
[1723901465161,2.4695,2611.1,2610.5,2.87296]
[1723901465162,5.34194,2611.1,2610.5,2.87296]
[1723901465908,5.34194,2611.1,2610.4,2.8731]
[1723901466125,3.406654,2611.0,2610.5,3.0]
[1723901466398,0.534194,2611.0,2610.4,2.87309]
[1723901466698,0.8748594,2610.9,2610.4,2.87309]
[1723901466893,0.8748594,2610.9,2610.3,2.87315]
[1723901467093,0.8748594,2610.9,2610.3,2.87321]
[1723901467303,0.42815134,2610.8,2610.3,2.87321]
[1723901467474,0.42815134,2610.8,2610.4,2.87311]
[1723901467709,0.42815134,2610.8,2610.3,5.74636]
[1723901467896,0.42815134,2610.8,2610.3,2.87315]
[1723901469130,0.33007213,2610.7,2610.3,2.87315]
[1723901470136,0.42815134,2610.8,2610.3,2.87315]
[1723901471043,0.534194,2611.0,2610.0,3.0]
[1723901471198,9.9195,2611.1,2610.8,2.87268]
[1723901471647,9.9195,2611.1,2610.6,2.87283]
[1723901471959,0.99195,2611.0,2610.4,2.87303]
[1723901472117,0.99195,2611.0,2610.5,2.87297]
[1723901472320,1.091145,2610.9,2610.5,2.87297]
[1723901473796,9.9195,2611.1,2610.5,2.873]
[1723901473996,7.45,2611.1,2611.0,2.87246]
[1723901474305,2.4695,2611.4,2610.6,3.55]
[1723901474896,2.4695,2611.4,2610.8,2.87263]
[1723901475326,8.50755,2611.4,2610.8,2.87263]
[1723901475659,2.2938,2611.3,2610.7,2.87277]
[1723901475843,0.833185,2611.2,2610.7,2.87277]
[1723901476048,2.2938,2611.1,2610.6,3.0]
[1723901476232,5.4598,2611.1,2610.6,3.0]
[1723901476447,1.2037555,2611.0,2610.6,3.0]
[1723901477558,1.2037555,2611.0,2610.6,5.87289]
[1723901477763,2.2938,2611.1,2610.6,8.74572]
[1723901478465,2.2938,2611.1,2610.9,2.87247]
[1723901478623,2.2938,2611.1,2611.0,2.87246]
[1723901478823,2.2938,2611.1,2610.9,2.87247]
[1723901479925,2.2938,2611.1,2610.7,5.74542]
[1723901480121,2.2938,2611.1,2610.7,2.87269]
[1723901480541,2.52318,2611.1,2610.7,2.87269]
[1723901481522,2.52318,2611.1,2610.6,3.0]
[1723901481928,2.87162,2611.8,2610.6,3.0]
[1723901481929,2.2434,2612.0,2611.5,2.87186]
[1723901482188,2.2434,2612.0,2611.5,2.87183]
[1723901482481,2.2434,2612.0,2611.7,2.87162]
[1723901482927,2.46774,2612.0,2611.7,5.74325]
[1723901483097,2.46774,2612.0,2611.7,5.74324]
[1723901483424,2.2434,2612.0,2611.9,2.87147]
[1723901483632,3.166,2612.7,2612.2,2.87113]
[1723901483923,3.4826,2612.7,2612.2,2.87113]
[1723901484096,3.4826,2612.7,2612.3,2.87096]
[1723901484298,3.4826,2612.7,2612.2,2.87107]
[1723901485119,2.2694,2612.6,2612.2,2.87107]
[1723901485321,0.5752,2612.5,2612.2,2.87107]
[1723901485523,2.87114,2612.2,2611.4,3.0]
[1723901485726,3.166,2612.4,2611.6,2.87178]
[1723901485727,2.2694,2612.1,2611.6,2.87178]
[1723901486589,2.2694,2612.1,2611.6,5.7435]
[1723901487086,2.2694,2612.1,2611.6,2.87172]
[1723901488116,2.2694,2612.1,2611.7,2.87163]
[1723901488993,2.2694,2612.1,2611.6,5.74343]
[1723901489238,5.699752,2612.1,2611.2,3.0]
[1723901489524,5.699752,2612.1,2611.6,2.87172]
[1723901489525,2.533752,2612.1,2611.6,2.87172]
[1723901489700,2.2694,2612.1,2611.6,2.87172]
[1723901491609,2.2694,2612.1,2611.4,5.74388]
[1723901491788,5.14065,2612.1,2611.4,5.74388]
[1723901491994,0.801185,2612.0,2611.5,2.87188]
[1723901492431,2.2694,2612.1,2611.6,2.87175]
[1723901492627,2.2694,2612.1,2611.5,2.87188]
[1723901492628,8.92001433,2612.4,2612.0,2.87129]
[1723901492828,2.2694,2612.4,2612.0,2.87129]
[1723901493017,3.47998926,2612.4,2612.0,2.87129]
[1723901495128,3.47998926,2612.4,2611.6,2.87174]
[1723901495331,5.29394,2612.3,2611.6,2.87174]
[1723901495825,5.29394,2612.3,2611.6,5.74345]
[1723901496027,1.25415593,2612.2,2611.6,5.74345]
[1723901496231,4.12530593,2612.2,2611.4,2.87195]
[1723901496394,2.4229,2612.1,2611.5,3.0]
[1723901496595,3.07772059,2612.1,2611.5,3.0]
[1723901496800,3.07772059,2612.1,2611.5,5.87183]
[1723901498948,3.07772059,2612.1,2611.5,3.0]
[1723901498949,5.94903059,2612.1,2611.5,3.0]
[1723901499114,0.88201806,2612.0,2611.5,3.0]
[1723901499316,0.88201806,2612.0,2611.2,2.87218]
[1723901499317,2.4229,2611.9,2611.2,2.87218]
[1723901499517,2.4229,2611.7,2611.2,2.87218]
[1723901499718,0.529455,2611.6,2611.2,2.87218]
[1723901499922,2.4229,2611.7,2611.2,2.87218]